Cogmind - Beta 13 @@@ ROGUE MODE // 2024.07.11 @ 04:50:33 Player: Halfie Result: Destroyed by S-10 Pest with Light Assault Rifle Performance ------------- Evolutions (2) 1000 Regions Visited (5) 1000 Robots Destroyed (33) 165 Value Destroyed (662) 662 Prototype IDs (0) 0 Alien Tech Used (0) 0 Bonus (200) 200 TOTAL SCORE: 3027 Bonus ------- Entered Garrisons 200 Cogmind --------- Core Integrity 0/550 Matter 280/300 Energy 84/100 System Corruption 2% Temperature Cool (0) Movement Core (50) Location -8/Garrison Parts ------- > --- POWER (1) -------- (None) > --- PROPULSION (4) --- (None) > --- UTILITY (4) ------ Authchip [R/Combat] > --- WEAPON (2) ------- (None) > --- INVENTORY (5) ---- Light Treads Airjet High-capacity Matter Pod (200) Beam Rifle Mining Laser Peak State ------------ > --- POWER ------------ Improved Ion Engine > --- PROPULSION ------- Aluminum Leg Aluminum Leg Aluminum Leg > --- UTILITY ---------- Medium Storage Unit Improved Signal Interpreter Improved Targeting Computer Hardened Light Armor Plating > --- WEAPON ----------- Assault Cannon > --- INVENTORY -------- Light Treads Light Treads Airjet High-capacity Matter Pod Weight Redist. System Core Shielding Beam Rifle Datajack Mining Laser [Rating: 17] Favorites ----------- Power Light Ion Engine Engine Light Ion Engine Propulsion Aluminum Leg Leg Aluminum Leg Wheel Compact Wheel Utility Medium Storage Unit Device Heat Sink Storage Medium Storage Unit Processor Improved Targeting Computer Hackware Authchip [R/Combat] Protection Hardened Light Armor Plating Weapon EM Pulse Gun Energy Gun EM Pulse Gun Energy Cannon Beam Cannon Ballistic Cannon Assault Cannon Special Weapon Mining Laser Special Melee Weapon Datajack Build | -11 -10 -9 -9 -8 -8 ------- Run | Yrd Mat Mat Min Mat Gar Slots Evolved 4 | . . 2 . 2 . Power . | . . . . . . Propulsion 2 | . . 1 . 1 . Utility 2 | . . 1 . 1 . Weapon . | . . . . . . Parts Attached 34 | 6 14 1 10 2 1 Power 5 | 1 2 . 2 . . Engine 5 | 1 2 . 2 . . Core . | . . . . . . Reactor . | . . . . . . Propulsion 10 | 2 5 . 3 . . Treads . | . . . . . . Leg 6 | . 3 . 3 . . Wheel 4 | 2 2 . . . . Hover . | . . . . . . Flight . | . . . . . . Utility 9 | 1 3 1 2 1 1 Device 3 | . 2 1 . . . Storage 2 | 1 1 . . . . Processor 2 | . . . 1 1 . Hackware 1 | . . . . . 1 Protection 1 | . . . 1 . . Artifact . | . . . . . . Weapon 10 | 2 4 . 3 1 . Energy Gun 5 | 2 2 . 1 . . Energy Cannon 2 | . 2 . . . . Ballistic Gun . | . . . . . . Ballistic Cannon 1 | . . . . 1 . Launcher . | . . . . . . Special Weapon 1 | . . . 1 . . Impact Weapon . | . . . . . . Slashing Weapon . | . . . . . . Piercing Weapon . | . . . . . . Special Melee Weapon 1 | . . . 1 . . Unidentified Prototypes . | . . . . . . Parts Lost 9 | . 2 . 2 . 5 Power 2 | . 1 . . . 1 Propulsion 3 | . 1 . . . 2 Utility 1 | . . . . . 1 Weapon 3 | . . . 2 . 1 Highest Loss Streak 5 | . 1 . 1 . 5 To Critical Strikes . | . . . . . . Average Slot Usage (%) 89 | . 92 85 96 79 55 Engine 10 | . 11 11 11 9 4 Leg 19 | . 7 22 31 27 19 Wheel 6 | . 17 . . . . Device 13 | . 13 19 14 . . Storage 11 | . 14 11 11 9 6 Processor 2 | . . . 3 10 13 Protection 2 | . . . 4 9 6 Energy Gun 13 | . 15 22 11 6 . Energy Cannon 4 | . 12 . . . . Special Weapon 1 | . . . 3 6 . Special Melee Weapon 1 | . . . 5 . . Naked Turns 25 | . . . . . 25 Heaviest Build 28 | 12 20 22 28 27 27 Greatest Support 32 | 26 32 20 30 30 30 Greatest Overweight (x) 1 | . 1 1 1 . 1 Average Overweight (x) . | . . . . . . Largest Inventory Capacity 10 | 8 10 10 10 10 10 Average Capacity 9 | 6 9 10 10 10 8 Most Carried 10 | 2 10 6 10 9 9 Average Carried 5 | 1 5 5 6 7 8 Final Capacity 10 | 8 10 10 10 10 5 Final Carried 9 | 2 4 6 6 9 5 Class Distribution -------------------- 73% | Mutant 26% | Scavenger-Mutant Dominant Class ---------------- Mutant | -10/Materials Scavenger-Mutant | -9/Materials Mutant | -9/Mines Mutant | -8/Materials Mutant | -8/Garrison Resources | -11 -10 -9 -9 -8 -8 ----------- Run | Yrd Mat Mat Min Mat Gar Matter Collected 747 | 253 121 58 277 . 38 Remotely . | . . . . . . Salvage Created 1276 | . 772 85 377 . 42 Parts 52 | . 31 3 14 . 4 Haulers Intercepted 1 | . 1 . . . . Recyclers Shooed 5 | . 3 . 2 . . Parts Field Recycled . | . . . . . . Retrieved Matter . | . . . . . . Parts Self-Destructed . | . . . . . . Prevented . | . . . . . . Kills | -11 -10 -9 -9 -8 -8 ------- Run | Yrd Mat Mat Min Mat Gar Combat Hostiles Destroyed 19 | . 9 1 6 . 3 Guns 10 | . 5 . 5 . . Cannons 6 | . 3 . . . 3 AOE 1 | . . . 1 . . Classes Destroyed 9 | . 6 1 1 . 1 Worker 1 | . . . 1 . . Tunneler 1 | . 1 . . . . Hauler 1 | . 1 . . . . Recycler 7 | . 5 . 2 . . Operator 1 | . . 1 . . . Watcher 3 | . 2 1 . . . Swarmer 8 | . 3 . 3 . 2 Grunt 10 | . 6 1 3 . . Programmer 1 | . . . . . 1 Best Kill Streak 4 | . 4 1 3 . 2 Combat Bots Only 3 | . 3 1 3 . 2 Max Kills in Single Turn 1 | . 1 1 1 . 1 Gunslinging . | . . . . . . Exploded 1 | . . . 1 . . Melee . | . . . . . . Uniques/NPCs Destroyed . | . . . . . . Combat | -11 -10 -9 -9 -8 -8 -------- Run | Yrd Mat Mat Min Mat Gar Hostile Shots Fired 272 | . 54 12 37 . 169 Missed 81 | . 11 2 13 . 55 Damage Taken 2086 | 1 521 111 233 . 1220 Core 803 | . 183 44 19 . 557 Absorbed by Shields 140 | . . 17 83 . 40 Core Remaining (%) 70 | 100 26 . 84 . . Volleys Fired 100 | . 43 7 37 . 13 Largest 2 | . 2 2 2 . 1 Hottest 120 | . 120 80 100 . 44 Shots Fired 157 | . 86 14 44 . 13 Gun 100 | . 48 14 38 . . Cannon 51 | . 38 . . . 13 Launcher . | . . . . . . Special 6 | . . . 6 . . Kinetic 13 | . . . . . 13 Thermal 91 | . 80 . 11 . . Explosive . | . . . . . . Electromagnetic 53 | . 6 14 33 . . Robot Hit Streak 7 | . 6 7 5 . 3 Robot Miss Streak 5 | . 5 1 4 . 2 Penetration Max . | . . . . . . Secondary Targets 1 | . 1 . . . . Max Gunslinging Chain 1 | . 1 . . . . Shots Hit Robots 90 | . 46 10 26 . 8 Core Hits 43 | . 22 3 14 . 4 Critical Kills 1 | . 1 . . . . Critical Parts Destroyed . | . . . . . . Critical Strikes 2 | . 2 . . . . Burn 1 | . 1 . . . . Meltdown 1 | . 1 . . . . Melee Attacks 4 | . . . 4 . . Impact . | . . . . . . Slashing . | . . . . . . Piercing . | . . . . . . Sneak Attacks 3 | . . . 3 . . Combat Hostiles . | . . . . . . Follow-up Attacks . | . . . . . . Damage Inflicted 1615 | 3 736 218 364 . 294 Guns 834 | . 365 149 320 . . Cannons 604 | . 330 . . . 274 Explosions 154 | . 41 69 44 . . Melee . | . . . . . . Ramming 23 | 3 . . . . 20 Kinetic 274 | . . . . . 274 Thermal 816 | . 645 69 102 . . Explosive 41 | . 41 . . . . Electromagnetic 461 | . 50 149 262 . . Impact . | . . . . . . Slashing . | . . . . . . Piercing . | . . . . . . Highest Corruption 3 | . 3 . . . 2 Average Corruption 2 | . 2 . . . 1 Corruption Purged . | . . . . . . Corruption Blocked . | . . . . . . Effects 2 | . 2 . . . . Matter Fused 1 | . 1 . . . . Parts Rejected 1 | . 1 . . . . Overload Shots . | . . . . . . Overflow Damage 8 | . 5 . . . 3 Projectiles 8 | . 5 . . . 3 Explosions . | . . . . . . Melee . | . . . . . . Knockbacks 4 | 1 . . . . 3 Impact 1 | 1 . . . . . Kinetic 3 | . . . . . 3 Secondary . | . . . . . . Self-Inflicted Damage 74 | 1 73 . . . . Shots 1 | . 1 . . . . Rammed 1 | 1 . . . . . Targets Rammed 10 | 1 . . . . 9 Kicked 9 | . . . . . 9 Crushed . | . . . . . . Highest Temperature 490 | . 490 . 114 . 12 Average Temperature 134 | . 163 . 51 . 6 Received Heat Transfer 406 | . 171 36 118 . 81 Effects 6 | . 6 . . . . Shutdowns 2 | . 2 . . . . Interference 3 | . 3 . . . . Short Circuit 1 | . 1 . . . . Siege Activations . | . . . . . . Robots Corrupted 1 | . . 1 . . . Combat Hostiles 1 | . . 1 . . . Parts Fried 1 | . . . 1 . . Impact Corruptions . | . . . . . . Robots Melted 2 | . 2 . . . . Combat Hostiles 1 | . 1 . . . . Parts Melted 3 | . 3 . . . . Heat Transferred 2000 | . 1702 100 198 . . Parts Sabotaged . | . . . . . . Parts Stolen . | . . . . . . Parts Stripped . | . . . . . . Power Chain Reactions 4 | . . 2 2 . . Alert | -11 -10 -9 -9 -8 -8 ------- Run | Yrd Mat Mat Min Mat Gar Peak Influence 254 | . 254 146 243 18 126 Initial 56 | . . 52 56 14 11 Average 107 | . 99 94 152 14 72 Maximum Alert Level 1 | . 1 . 1 . . Low Security (%) 81 | 100 87 100 55 100 100 Level 1 18 | . 12 . 44 . . Level 2 . | . . . . . . Level 3 . | . . . . . . Level 4 . | . . . . . . Level 5 . | . . . . . . High Security . | . . . . . . Max Security . | . . . . . . Squads Dispatched 4 | . 3 1 . . . Investigation 3 | . 2 1 . . . Extermination . | . . . . . . Reinforcement 1 | . 1 . . . . Assault . | . . . . . . Garrison . | . . . . . . Intercept . | . . . . . . Searches Triggered . | . . . . . . Construction Impeded . | . . . . . . Haulers Reinforced . | . . . . . . Active Scanning Responses . | . . . . . . Cargo Convoy Interrupts . | . . . . . . Stealth | -11 -10 -9 -9 -8 -8 --------- Run | Yrd Mat Mat Min Mat Gar Distress Signals . | . . . . . . Communications Jammed . | . . . . . . Distress Signals . | . . . . . . Times Spotted 41 | . 10 4 8 . 19 Peak Tracking Total 10 | . 3 1 3 . 10 Tactical Retreats 1 | . . 1 . . . Traps | -11 -10 -9 -9 -8 -8 ------- Run | Yrd Mat Mat Min Mat Gar Traps Triggered 4 | . 3 . . . 1 Indirectly . | . . . . . . Trap Hack Attempts . | . . . . . . Triggered . | . . . . . . Disarmed . | . . . . . . Reprogrammed . | . . . . . . Reused . | . . . . . . Traps Extracted . | . . . . . . Installed . | . . . . . . Triggered . | . . . . . . Machines | -11 -10 -9 -9 -8 -8 ---------- Run | Yrd Mat Mat Min Mat Gar Machines Disabled 5 | . 2 . 2 . 1 Max in Single Turn 1 | . 1 . 1 . 1 Garrison Relay 1 | . . . . . 1 Machines Repaired . | . . . . . . Machines Dismantled . | . . . . . . Machines Sabotaged . | . . . . . . Overloaded Fab Kills . | . . . . . . Hacking | -11 -10 -9 -9 -8 -8 --------- Run | Yrd Mat Mat Min Mat Gar Machines Accessed 7 | . 3 2 . 1 1 Terminals 6 | . 3 2 . . 1 Fabricators . | . . . . . . Repair Stations . | . . . . . . Recycling Units . | . . . . . . Scanalyzers . | . . . . . . Garrison Access 1 | . . . . 1 . Total Hacks 14 | . 7 4 . 1 2 Successful 3 | . 1 1 . 1 . Failed 11 | . 6 3 . . 2 Catastrophic 3 | . . 2 . . 1 Database Lockouts . | . . . . . . Manual 10 | . 4 4 . . 2 Terminals 13 | . 7 4 . . 2 Fabricators . | . . . . . . Repair Stations . | . . . . . . Recycling Units . | . . . . . . Scanalyzers . | . . . . . . Garrison Access 1 | . . . . 1 . Terminal Hacks . | . . . . . . Fabricator Hacks . | . . . . . . Repair Station Hacks . | . . . . . . Recycling Unit Hacks . | . . . . . . Scanalyzer . | . . . . . . Garrison Access Hacks 1 | . . . . 1 . Unlock Access 1 | . . . . 1 . Unauthorized Hacks 2 | . 1 1 . . . Terminals 2 | . 1 1 . . . Botnet 2 | . 1 1 . . . Fabricators . | . . . . . . Repair Stations . | . . . . . . Recycling Units . | . . . . . . Scanalyzers . | . . . . . . Garrison Access . | . . . . . . Data Cores Recovered 1 | . . 1 . . . Used 1 | . . 1 . . . Hacking Detections 4 | . 2 1 . . 1 Full Trace Events 3 | . 1 1 . . 1 Feedback Events . | . . . . . . Feedback Blocked . | . . . . . . Robot Schematics Acquired . | . . . . . . Robots Built . | . . . . . . Authchips . | . . . . . . Time . | . . . . . . Total Robot Build Rating . | . . . . . . Part Schematics Acquired . | . . . . . . Parts Built . | . . . . . . Authchips . | . . . . . . Time . | . . . . . . Total Part Build Rating . | . . . . . . Parts Repaired . | . . . . . . Time . | . . . . . . Parts Recycled . | . . . . . . Recycled Matter . | . . . . . . Retrieved Matter . | . . . . . . Retrieved Components . | . . . . . . Parts Scanalyzed . | . . . . . . Part Schematics Acquired . | . . . . . . Parts Damaged . | . . . . . . Bothacking | -11 -10 -9 -9 -8 -8 ------------ Run | Yrd Mat Mat Min Mat Gar Used RIF Installer . | . . . . . . Robots Hacked 1 | . . . 1 . . Non-combat 1 | . . . 1 . . Combat . | . . . . . . Robot Hacks Applied 1 | . . . 1 . . no_distress 1 | . . . 1 . . Relay Couplers Released 5 | . . . . . 5 Machine Destruction 5 | . . . . . 5 Fabnet Peak Effective % . | . . . . . . Robots Rewired 1 | . . . 1 . . Allies Hacked . | . . . . . . Hacks Repelled . | . . . . . . Allies | -11 -10 -9 -9 -8 -8 -------- Run | Yrd Mat Mat Min Mat Gar Total Allies 1 | . . . 1 . . Largest Group 1 | . . . 1 . . Highest-Rated Group 8 | . . . 8 . . Highest-Rated Ally 8 | . . . 8 . . Total Orders . | . . . . . . Ally Attacks . | . . . . . . Total Damage . | . . . . . . Kills . | . . . . . . Allies Corrupted . | . . . . . . Allies Melted . | . . . . . . Intel | -11 -10 -9 -9 -8 -8 ------- Run | Yrd Mat Mat Min Mat Gar Robot Analysis Total . | . . . . . . Derelict Logs Recovered 1 | . . . 1 . . Drone Launches . | . . . . . . Drone Recoveries . | . . . . . . Exploration | -11 -10 -9 -9 -8 -8 ------------- Run | Yrd Mat Mat Min Mat Gar Turns Passed 1762 | 53 675 313 554 62 105 Spaces Moved 1125 | 47 459 159 343 48 69 Core 39 | 4 . . . . 35 Treads . | . . . . . . Legs 692 | . 108 159 343 48 34 Wheels 394 | 43 351 . . . . Hover . | . . . . . . Flight . | . . . . . . Fastest Speed 50 | 50 90 120 120 120 50 Average Speed 120 | 86 111 171 121 120 85 Slowest Speed 190 | 90 190 190 190 120 190 Overloaded Moves . | . . . . . . Propulsion Burnouts . | . . . . . . Robots Hopped . | . . . . . . Cave-ins Triggered . | . . . . . . Exploration Rate (%) 29 | 3 65 9 65 5 27 Regions Visited 5 Branch Regions 1 Pre-discovered Areas 1 | . . . 1 . . Known Exits Taken 1 | . . . . 1 . Unknown Exits Taken 4 | 1 1 1 1 . . Scrap Searched . | . . . . . . Spaces Dug 4 | . . . 4 . . Terrain Destroyed 54 | . 37 5 12 . . Melee . | . . . . . . Projectile 5 | . . . 5 . . AOE 49 | . 37 5 7 . . Terrain Rammed . | . . . . . . Walls Destroyed . | . . . . . . Machines Disabled . | . . . . . . Actions | -11 -10 -9 -9 -8 -8 --------- Run | Yrd Mat Mat Min Mat Gar Total 1357 | 57 538 186 424 52 100 Wait 35 | . 6 18 11 . . Move 1120 | 46 458 158 342 47 69 Hop . | . . . . . . Pick Up 13 | 4 2 2 4 1 . Fast Attach 21 | 4 9 1 4 2 1 Attach 3 | 2 . . 1 . . Detach 9 | . 5 . 2 2 . Swap 10 | . 5 . 5 . . Drop 17 | . 10 . 7 . . Fire 100 | . 43 7 37 . 13 Melee 4 | . . . 4 . . Ram 1 | 1 . . . . . Kick 9 | . . . . . 9 Crush . | . . . . . . Escape Stasis 8 | . . . . . 8 Rewire 7 | . . . 7 . . Trap . | . . . . . . Miscellaneous . | . . . . . . Route ------- -11/Scrapyard -10/Materials (discovered 2 exits: *Mat / [*Min]) -9/Materials -9/Mines -8/Materials -8/Garrison History --------- Turn | Location | Event 9 | -11/Scrapyard | Discovered new exit (range 15) 54 | -11/Scrapyard | Entered Materials 139 | -10/Materials | Discovered new exit (range 16) 318 | -10/Materials | Build established: Mutant 433 | -10/Materials | Core integrity fell below 50% 688 | -10/Materials | Discovered new exit (range 14) 729 | -10/Materials | Entered another Materials area 729 | -9/Materials | Evolved 2 slots: Propulsion x1, Utility x1 808 | -9/Materials | Discovered new exit (range 3) 939 | -9/Materials | Build established: Scavenger-Mutant 1042 | -9/Materials | Entered Mines 1071 | -9/Mines | Discovered new exit (range 14) 1370 | -9/Mines | Learned location of Storage (-8) 1371 | -9/Mines | Joined a pair of Derelicts in attacking an 0b10 outpost 1426 | -9/Mines | Build established: Mutant 1596 | -9/Mines | Entered Materials 1596 | -8/Materials | Evolved 2 slots: Propulsion x1, Utility x1 1654 | -8/Materials | Identified exit to Garrison 1658 | -8/Materials | Entered Garrison 1737 | -8/Garrison | Released all parts (4) 1738 | -8/Garrison | Core integrity fell below 50% 1743 | -8/Garrison | Triggered checkpoint 1750 | -8/Garrison | Core integrity fell below 20% 1763 | -8/Garrison | Destroyed by S-10 Pest with Light Assault Rifle Last Messages --------------- 01744_ C-30 ARC bursts open, deploying its payload. 01744_ H-55 Commando unfolds itself. 01745_ Triggered Stasis Trap. 01745_ A bubble of rippling energy engulfs the area. 01745_ Field strength at 94. 01745_ Field strength at 88. 01746_ Field strength at 82. 01747_ Field strength at 74. 01748_ S-10 Pest destroyed. 01748_ Field strength at 60. 01749_ Slug penetrates Wall. 01749_ Field strength at 47. 01750_ Field strength at 41. 01751_ Field strength at 26. 01752_ Field strength at 13. 01753_ Stasis field depleted. 01755_ Slug penetrates Wall. 01762_ Acquired Authchip [R/Combat]. Map ----- +----------------------------------------------------+ | ?????????????????# #?????????# #????????????????? | | ???????# ????????#% +?????????# #????????????????? | | ???????# ??#####?#* #?????????# #????????????????? | | ???????# ?# ?#%=#?????????# #????????????????? | | ??????## ## ## =##????????? ?????????????????? | | ???#### /!!#????????? ?????????????????? | | ??? !=#????????? ?????????????????? | | ???? #????????? ?????????????????? | | ?????## ## ## #????????? ?????????????????? | | ??????# ## ## ##????????"?????????????????? | | ??????" "%??????????????????????????? | | ??????" ??????????????????????????? | | ??????" ???????????????????????????? | | ??????" ???????????????????????????? | | ??????# ## ## [#???????????????????????????? | | ??????# ## ## =%############????????????????? | | ??????# = #????????????????? | | ??????# #????????????????? | | ??????# #????????????????? | | ??????## ##""""############# #????????????????? | | ???????# ??????????????????/ #????????????????? | | ???????# ???????????????????# #????????????????? | | ???????#????????????????????# #????????????????? | | ?????????????????############ #????????????????? | | ????????????????#""""""""""## #????????????????? | | ????????????????#"""!!!!!@"## #####????????????? | | ????????????????#"" s s ?????? | | ????????????????#"! ?????? | | ????????????????#"! ## ####"""#####?????? | | ????????????????#"! ## #????????????????? | | ????????????????#"! ## #????????????????? | | ????????????????#"" ## #????????????????? | | ????????????????#"""!!!!!!"## #????????????????? | | ?????????????????""""""""""## #????????????????? | | ??????????????????##########? #????????????????? | | ????????????????????????????? #????????????????? | | ????????????????????????????? #????????????????? | | ????????????????????????????? ????????????????? | | ????????????????????????????? ????????????????? | | ????????????????????????????? ????????????????? | | ????????????????????????????? ##????????????????? | | ?????????????????????????????????????????????????? | | ?????????????????????????????????????????????????? | | ?????????????????????????????????????????????????? | | ?????????????????????????????????????????????????? | | ?????????????????????????????????????????????????? | | ?????????????????????????????????????????????????? | | ?????????????????????????????????????????????????? | | ?????????????????????????????????????????????????? | | ?????????????????????????????????????????????????? | +----------------------------------------------------+ Best States ------------- Heat Dissipation 38 Energy Generation 12 Energy Capacity 265 Matter Stores 300 Matter Capacity 300 Sight Range 16 Terrain Scan Range 16 Terrain Scan Density 10 Armor Coverage 150 Evasion (%) 55 Targeting Accuracy 6 Item Schematics ----------------- None Robot Schematics ------------------ None Fabricated ------------ Nothing Alien Tech Used ----------------- None Achievements -------------- A New Friend Dynamic Key Loot Pinata Challenges ------------ None Game ------ Seed ImprinterMolecularShotgun Manual? 0 Play Time 00:26:16 Cumulative 3.1 hours Start 2024.07.11 @ 04:18:36 End 2024.07.11 @ 04:50:33 Sessions 2 Manual Loads 0 Difficulty Rogue Special Mode None Game No. 5 Rogue 4 Adventurer 0 Explorer 1 Win Type - Total 0 Types 0/0/0/0/0/0/0/0/0 Lore% 5 Gallery% 7 Achievement% 9 Wizard Run 0 Options --------- Layout 1 ASCII 0 Keyboard 1 Movement Numpad Keybinds 0 Fullscreen 1 Font 24/Smallcaps Map View 50x35 Zoom Use 0% Tactical HUD 1 Map Filters NONE Filters NONE Steam 1 RUN: e4bdc51e-511d-43e4-a916-a93fb8f6b534